fUSD/lending_fUSD_20250923
["ID","MTS","AMOUNT","RATE_DAILY","PERIOD"]
[387228478,1758661889471,-400.0,0.00024931,3]
[387228479,1758661889480,-1352.63,0.00024931,3]
[387228480,1758661889489,-821.9,0.00024931,3]
[387228481,1758661889498,-400.0,0.00024931,3]
[387228482,1758661889507,-400.0,0.00024931,3]
[387228483,1758661889517,-813.02,0.00024931,3]
[387228484,1758661889526,-1433.12,0.00024931,3]
[387228485,1758661889535,-520.94,0.00024931,3]
[387228486,1758661889545,-466.06,0.00024931,3]
[387228487,1758661889554,-400.0,0.00024931,3]
[387228488,1758661889564,-400.0,0.00024931,3]
[387228489,1758661889573,-2368.87,0.00024931,3]
[387228490,1758661889583,-532.58,0.00024931,3]
[387228491,1758661889594,-742.11,0.00024931,3]
[387228492,1758661889604,-1889.15,0.00024931,3]
[387228493,1758661889613,-2302.63,0.00024931,3]
[387228494,1758661889622,-400.0,0.00024931,3]
[387228495,1758661889633,-974.75,0.00024931,3]
[387228496,1758661889642,-400.0,0.00024931,3]
[387228497,1758661889652,-1418.34,0.00024931,3]
[387228498,1758661889663,-672.27,0.00024931,3]
[387228499,1758661889675,-608.12,0.00024931,3]
[387228500,1758661889685,-400.0,0.00024931,3]
[387228501,1758661889694,-400.0,0.00024931,3]
[387228502,1758661889703,-400.0,0.00024931,3]
[387228503,1758661889712,-2133.34,0.00024931,3]
[387228504,1758661889726,-165.08873909,0.00024931,3]
[387228505,1758661889736,-1198.64,0.00024931,3]
[387228506,1758661889746,-400.0,0.00024931,3]
[387228507,1758661889755,-929.7,0.00024931,3]
[387228508,1758661889765,-1579.97,0.00024931,3]
[387228509,1758661889775,-400.0,0.00024931,3]
[387228510,1758661889785,-400.0,0.00024931,3]
[387228511,1758661889795,-801.81,0.00024931,3]
[387228512,1758661889805,-400.0,0.00024931,3]
[387228513,1758661889815,-400.0,0.00024931,3]
[387228514,1758661889825,-1178.71,0.00024931,3]
[387228515,1758661889834,-400.0,0.00024931,3]
[387228516,1758661889844,-400.0,0.00024931,3]
[387228517,1758661889854,-777.68,0.00024931,3]
[387228518,1758661889863,-1606.37,0.00024931,3]
[387228519,1758661889873,-400.0,0.00024931,3]
[387228520,1758661889883,-1521.64,0.00024931,3]
[387228521,1758661889892,-1308.38,0.00024931,3]
[387228522,1758661889902,-400.0,0.00024931,3]
[387228523,1758661889912,-400.0,0.00024931,3]
[387228524,1758661889922,-1029.42,0.00024931,3]
[387228525,1758661889932,-400.0,0.00024931,3]
[387228526,1758661889941,-2170.29,0.00024931,3]
[387228527,1758661889951,-677.52,0.00024931,3]
[387228528,1758661889961,-400.0,0.00024931,3]
[387228529,1758661889971,-400.0,0.00024931,3]
[387228530,1758661889980,-1340.54,0.00024931,3]
[387228531,1758661889990,-400.0,0.00024931,3]
[387228532,1758661890000,-400.0,0.00024931,3]
[387228533,1758661890011,-1478.03,0.00024931,3]
[387228534,1758661890020,-400.0,0.00024931,3]
[387228535,1758661890030,-1497.1,0.00024931,3]
[387228536,1758661890047,-2205.71,0.00024931,3]
[387228537,1758661890066,-400.0,0.00024931,3]
[387228538,1758661890087,-599.76,0.00024931,3]
[387228539,1758661890106,-400.0,0.00024931,3]
[387228540,1758661890116,-542.18,0.00024931,3]
[387228541,1758661890126,-400.0,0.00024931,3]
[387228542,1758661890136,-1958.94,0.00024931,3]
[387228543,1758661890146,-400.0,0.00024931,3]
[387228544,1758661890156,-476.07,0.00024931,3]
[387228545,1758661890170,-400.0,0.00024931,3]
[387228546,1758661890181,-540.79,0.00024931,3]
[387228547,1758661890191,-400.0,0.00024931,3]
[387228548,1758661890201,-2146.02,0.00024931,3]
[387228549,1758661890212,-540.17,0.00024931,3]
[387228550,1758661890222,-789.29,0.00024931,3]
[387228551,1758661890232,-400.0,0.00024931,3]
[387228552,1758661890243,-400.0,0.00024931,3]
[387228553,1758661890645,-400.0,0.00024931,3]
[387228554,1758661890656,-643.6,0.00024931,3]
[387228555,1758661890668,-400.0,0.00024931,3]
[387228556,1758661890679,-400.0,0.00024931,3]
[387228557,1758661890688,-400.0,0.00024931,3]
[387228558,1758661890698,-529.59,0.00024931,3]
[387228559,1758661890709,-727.69,0.00024931,3]
[387228560,1758661890718,-1616.71,0.00024931,3]
[387228561,1758661890728,-400.0,0.00024931,3]
[387228562,1758661890738,-2221.7,0.00024931,3]
[387228563,1758661890748,-401.754026,0.00024931,3]
[387228564,1758661890758,-878.3,0.00024931,3]
[387228565,1758661890768,-1071.19,0.00024931,3]
[387228566,1758661890779,-400.0,0.00024931,3]
[387228567,1758661890789,-942.01,0.00024931,3]
[387228568,1758661890799,-400.0,0.00024931,3]
[387228569,1758661890809,-400.0,0.00024931,3]
[387228570,1758661890819,-400.0,0.00024931,3]
[387228571,1758661890830,-1046.83,0.00024931,3]
[387228572,1758661890844,-400.0,0.00024931,3]
[387228573,1758661890854,-400.0,0.00024931,3]
[387228574,1758661890864,-636.74,0.00024931,3]
[387228575,1758661890873,-400.0,0.00024931,3]
[387228576,1758661890883,-726.65,0.00024931,3]
[387228577,1758661890894,-893.67,0.00024931,3]
[387228578,1758661890904,-638.24,0.00024931,3]
[387228579,1758661890914,-685.89,0.00024931,3]
[387228580,1758661890924,-400.0,0.00024931,3]
[387228581,1758661890933,-2222.94,0.00024931,3]
[387228582,1758661890943,-1533.66,0.00024931,3]
[387228583,1758661890954,-696.62,0.00024931,3]
[387228584,1758661890965,-400.0,0.00024931,3]
[387228585,1758661890975,-421.66,0.00024931,3]
[387228586,1758661890984,-470.06,0.00024931,3]
[387228587,1758661890994,-400.0,0.00024931,3]
[387228588,1758661891004,-1976.2,0.00024931,3]
[387228589,1758661891015,-500.0,0.00024931,3]
[387228590,1758661891024,-431.04,0.00024931,3]
[387228591,1758661891034,-1447.62,0.00024931,3]
[387228592,1758661891045,-566.65,0.00024931,3]
[387228593,1758661891054,-400.0,0.00024931,3]
[387228594,1758661891064,-400.0,0.00024931,3]
[387228595,1758661891076,-1959.17,0.00024931,3]
[387228596,1758661891086,-572.27,0.00024931,3]
[387228597,1758661891096,-400.0,0.00024931,3]
[387228598,1758661891107,-2167.98,0.00024931,3]
[387228599,1758661891117,-1911.32,0.00024931,3]
[387228600,1758661891127,-429.06,0.00024931,3]
[387228601,1758661891136,-400.0,0.00024931,3]
[387228602,1758661891146,-400.0,0.00024931,3]
[387228603,1758661891156,-762.34,0.00024931,3]
[387228604,1758661891165,-400.0,0.00024931,3]
[387228605,1758661891175,-400.0,0.00024931,3]
[387228606,1758661891184,-400.0,0.00024931,3]
[387228607,1758661891194,-400.0,0.00024931,3]
[387228608,1758661891203,-433.33,0.00024931,3]
[387228609,1758661891213,-651.96,0.00024931,3]
[387228610,1758661891222,-400.0,0.00024931,3]
[387228611,1758661891232,-2027.61,0.00024931,3]
[387228612,1758661891243,-2031.79,0.00024931,3]
[387228613,1758661891252,-1228.77,0.00024931,3]
[387228614,1758661891262,-452.4,0.00024931,3]
[387228615,1758661891272,-1525.53,0.00024931,3]
[387228616,1758661891282,-400.0,0.00024931,3]
[387228617,1758661891291,-567.38,0.00024931,3]
[387228618,1758661891301,-400.0,0.00024931,3]
[387228619,1758661891312,-1148.96,0.00024931,3]
[387228620,1758661891322,-552.01,0.00024931,3]
[387228621,1758661891333,-400.0,0.00024931,3]
[387228622,1758661891344,-400.0,0.00024931,3]
[387228623,1758661891355,-5948.89,0.00024931,3]
[387228624,1758661891365,-400.0,0.00024931,3]
[387228625,1758661891374,-2290.32,0.00024931,3]
[387228626,1758661891384,-550.0,0.00024931,3]
[387228627,1758661891395,-1839.68,0.00024931,3]
[387228628,1758661891406,-400.0,0.00024931,3]
[387228629,1758661891416,-939.31,0.00024931,3]
[387228630,1758661891426,-403.6202476,0.00024931,3]
[387228631,1758661891437,-1373.68,0.00024931,3]
[387228632,1758661891448,-518.33,0.00024931,3]
[387228633,1758661891458,-400.0,0.00024931,3]
[387228634,1758661891468,-400.0,0.00024931,3]
[387228635,1758661891478,-400.0,0.00024931,3]
[387228636,1758661891488,-1353.63,0.00024931,3]
[387228637,1758661891498,-577.85,0.00024931,3]
[387228638,1758661891508,-400.0,0.00024931,3]
[387228639,1758661891517,-533.63,0.00024931,3]
[387228640,1758661891536,-400.0,0.00024931,3]
[387228641,1758661891547,-528.57,0.00024931,3]
[387228642,1758661891558,-410.78,0.00024931,3]
[387228643,1758661891568,-440.16,0.00024931,3]
[387228644,1758661891578,-400.0,0.00024931,3]
[387228645,1758661891589,-538.29,0.00024931,3]
[387228646,1758661891602,-1683.53,0.00024931,3]
[387228647,1758661891612,-2463.14,0.00024931,3]
[387228648,1758661891622,-400.0,0.00024931,3]
[387228649,1758661891632,-651.76,0.00024931,3]
[387228650,1758661891642,-400.0,0.00024931,3]
[387228651,1758661891652,-400.0,0.00024931,3]
[387228652,1758661891662,-400.0,0.00024931,3]
[387228653,1758661891675,-550.55,0.00024931,3]
[387228654,1758661891685,-555.69,0.00024931,3]
[387228655,1758661891695,-400.0,0.00024931,3]
[387228656,1758661891705,-1123.16,0.00024931,3]
[387228657,1758661891715,-400.0,0.00024931,3]
[387228658,1758661891726,-303.25234305,0.00024931,3]
[387228659,1758661891736,-650.97,0.00024931,3]
[387228660,1758661891746,-2005.02,0.00024931,3]
[387228661,1758661891756,-442.25,0.00024931,3]
[387228662,1758661891766,-1593.46,0.00024931,3]
[387228663,1758661891775,-400.0,0.00024931,3]
[387228664,1758661891785,-812.68,0.00024931,3]
[387228665,1758661891795,-400.0,0.00024931,3]
[387228666,1758661891805,-552.15,0.00024931,3]
[387228667,1758661891815,-1228.33,0.00024931,3]
[387228668,1758661891826,-512.24,0.00024931,3]
[387228669,1758661891836,-1356.95,0.00024931,3]
[387228670,1758661891846,-400.0,0.00024931,3]
[387228671,1758661891857,-748.52,0.00024931,3]
[387228672,1758661891867,-400.0,0.00024931,3]
[387228673,1758661891877,-400.0,0.00024931,3]
[387228674,1758661891887,-400.98491007,0.00024931,3]
[387228675,1758661891897,-1376.26,0.00024931,3]
[387228676,1758661891908,-400.0,0.00024931,3]
[387228677,1758661891919,-2216.63,0.00024931,3]
[387228678,1758661891933,-530.75,0.00024931,3]
[387228679,1758661891943,-400.0,0.00024931,3]
[387228680,1758661891953,-709.28,0.00024931,3]
[387228681,1758661891963,-447.23,0.00024931,3]
[387228682,1758661891974,-400.0,0.00024931,3]
[387228683,1758661891984,-400.0,0.00024931,3]
[387228684,1758661891995,-405.4378104,0.00024931,3]
[387228685,1758661892005,-1447.84,0.00024931,3]
[387228686,1758661892015,-1166.03,0.00024931,3]
[387228687,1758661892026,-529.79,0.00024931,3]
[387228688,1758661892036,-1687.09,0.00024931,3]
[387228689,1758661892046,-465.17,0.00024931,3]
[387228690,1758661892056,-400.0,0.00024931,3]
[387228691,1758661892068,-574.78,0.00024931,3]
[387228692,1758661892079,-400.0,0.00024931,3]
[387228693,1758661892089,-7327.83,0.00024931,3]
[387228694,1758661892099,-1238.97,0.00024931,3]
[387228695,1758661892109,-1154.46,0.00024931,3]
[387228696,1758661892119,-400.0,0.00024931,3]
[387228697,1758661892129,-1188.45,0.00024931,3]
[387228698,1758661892139,-400.0,0.00024931,3]
[387228699,1758661892149,-400.0,0.00024931,3]
[387228700,1758661892159,-416.66,0.00024931,3]
[387228701,1758661892168,-505.95,0.00024931,3]
[387228702,1758661892178,-666.18,0.00024931,3]
[387228703,1758661892188,-400.0,0.00024931,3]
[387228704,1758661892198,-803.5,0.00024931,3]
[387228705,1758661892209,-432.75,0.00024931,3]
[387228706,1758661892219,-400.0,0.00024931,3]
[387228707,1758661892229,-400.0,0.00024931,3]
[387228708,1758661892239,-955.99,0.00024931,3]
[387228709,1758661892250,-997.27,0.00024931,3]
[387228710,1758661892261,-400.0,0.00024931,3]
[387228711,1758661892272,-400.0,0.00024931,3]
[387228712,1758661892282,-445.78,0.00024931,3]
[387228713,1758661892296,-400.0,0.00024931,3]
[387228714,1758661892307,-400.0,0.00024931,3]
[387228715,1758661892317,-1561.57,0.00024931,3]
[387228716,1758661892331,-672.72,0.00024931,3]
[387228717,1758661892342,-400.0,0.00024931,3]
[387228718,1758661892352,-657.73,0.00024931,3]
[387228719,1758661892372,-523.11,0.00024931,3]
[387228720,1758661892382,-1947.97,0.00024931,3]
[387228721,1758661892392,-2717.59,0.00024931,3]
[387228722,1758661892402,-400.0,0.00024931,3]
[387228723,1758661892413,-401.33,0.00024931,3]
[387228724,1758661892423,-400.0,0.00024931,3]
[387228725,1758661892433,-538.16,0.00024931,3]
[387228726,1758661892443,-400.0,0.00024931,3]
[387228727,1758661892453,-1433.15,0.00024931,3]
[387228728,1758661892463,-1919.57,0.00024931,3]
[387228729,1758661892473,-400.0,0.00024931,3]
[387228730,1758661892484,-926.01,0.00024931,3]
[387228731,1758661892494,-400.0,0.00024931,3]
[387228732,1758661892504,-945.18,0.00024931,3]
[387228733,1758661892514,-1181.72,0.00024931,3]
[387228734,1758661892524,-426.24,0.00024931,3]
[387228735,1758661892535,-624.79,0.00024931,3]
[387228736,1758661892545,-632.04,0.00024931,3]
[387228737,1758661892556,-1517.08,0.00024931,3]
[387228738,1758661892566,-1814.29,0.00024931,3]
[387228739,1758661892576,-400.0,0.00024931,3]
[387228740,1758661892586,-400.0,0.00024931,3]
[387228741,1758661892600,-550.44,0.00024931,3]
[387228742,1758661892611,-1812.87,0.00024931,3]
[387228743,1758661892621,-400.0,0.00024931,3]
[387228744,1758661892632,-1726.16,0.00024931,3]
[387228745,1758661892643,-400.0,0.00024931,3]
[387228746,1758661892653,-400.0,0.00024931,3]
[387228747,1758661892663,-320.16,0.00024931,3]
[387228748,1758661892675,-400.0,0.00024931,3]
[387228749,1758661892686,-400.0,0.00024931,3]
[387228750,1758661892697,-400.0,0.00024931,3]
[387228751,1758661892708,-214.37485658,0.00024931,3]
[387228752,1758661892719,-400.0,0.00024931,3]
[387228753,1758661892729,-416.73,0.00024931,3]
[387228754,1758661892739,-1297.0,0.00024931,3]
[387228755,1758661892755,-2015.44,0.00024931,3]
[387228756,1758661892765,-400.0,0.00024931,3]
[387228757,1758661892776,-602.31,0.00024931,3]
[387228758,1758661892786,-402.26738468,0.00024931,3]
[387228759,1758661892797,-400.0,0.00024931,3]
[387228760,1758661892807,-571.24,0.00024931,3]
[387228761,1758661892819,-972.47,0.00024931,3]
[387228762,1758661892829,-942.21,0.00024931,3]
[387228763,1758661892839,-400.0,0.00024931,3]
[387228764,1758661892849,-14573.83,0.00024931,3]
[387228765,1758661892859,-400.0,0.00024931,3]
[387228766,1758661892869,-471.46,0.00024931,3]
[387228767,1758661892880,-400.0,0.00024931,3]
[387228768,1758661892890,-400.0,0.00024931,3]
[387228769,1758661892900,-1542.67,0.00024931,3]
[387228770,1758661892911,-593.86,0.00024931,3]
[387228771,1758661892921,-400.0,0.00024931,3]
[387228772,1758661892932,-531.64,0.00024931,3]
[387228773,1758661892942,-400.0,0.00024931,3]
[387228774,1758661892952,-400.0,0.00024931,3]
[387228775,1758661892963,-1936.81,0.00024931,3]
[387228776,1758661892972,-416.06,0.00024931,3]
[387228777,1758661892986,-400.00031505,0.00024931,3]
[387228778,1758661892997,-1881.69,0.00024931,3]
[387228779,1758661893007,-400.0,0.00024931,3]
[387228780,1758661893019,-959.55,0.00024931,3]
[387228781,1758661893029,-1006.3,0.00024931,3]
[387228782,1758661893040,-400.0,0.00024931,3]
[387228783,1758661893051,-400.0,0.00024931,3]
[387228784,1758661893062,-400.0,0.00024931,3]
[387228785,1758661893072,-1708.83,0.00024931,3]
[387228786,1758661893082,-400.0,0.00024931,3]
[387228787,1758661893093,-400.0,0.00024931,3]
[387228788,1758661893103,-400.0,0.00024931,3]
[387228789,1758661893114,-400.0,0.00024931,3]
[387228790,1758661893124,-586.47,0.00024931,3]
[387228791,1758661893135,-1329.66,0.00024931,3]
[387228792,1758661893145,-401.78472068,0.00024931,3]
[387228793,1758661893156,-2291.39,0.00024931,3]
[387228794,1758661893166,-2285.85,0.00024931,3]
[387228795,1758661893177,-400.0,0.00024931,3]
[387228796,1758661893390,-400.0,0.00024931,3]
[387228797,1758661893400,-400.0,0.00024931,3]
[387228798,1758661893409,-400.0,0.00024931,3]
[387228799,1758661893419,-400.0,0.00024931,3]
[387228800,1758661893428,-400.0,0.00024931,3]
[387228801,1758661893438,-400.0,0.00024931,3]
[387228802,1758661893447,-1573.42,0.00024931,3]
[387228803,1758661893456,-547.77,0.00024931,3]
[387228804,1758661893466,-508.17,0.00024931,3]
[387228805,1758661893475,-400.0,0.00024931,3]
[387228806,1758661893485,-413.79056904,0.00024931,3]
[387228807,1758661893494,-1796.15,0.00024931,3]
[387228808,1758661893504,-400.0,0.00024931,3]
[387228809,1758661893514,-682.34,0.00024931,3]
[387228810,1758661893524,-542.07,0.00024931,3]
[387228811,1758661893534,-1496.85,0.00024931,3]
[387228812,1758661893545,-183.81645565,0.00024931,3]
[387228813,1758661893555,-1376.17,0.00024931,3]
[387228814,1758661893565,-1429.93,0.00024931,3]
[387228815,1758661893575,-400.0,0.00024931,3]
[387228816,1758661893585,-724.99,0.00024931,3]
[387228817,1758661893599,-428.28298274,0.00024931,3]
[387228818,1758661893609,-1199.39,0.00024931,3]
[387228819,1758661893618,-400.0,0.00024931,3]
[387228820,1758661893628,-400.0,0.00024931,3]
[387228821,1758661893638,-2733.25,0.00024931,3]
[387228822,1758661893648,-1273.03,0.00024931,3]
[387228823,1758661893658,-400.0,0.00024931,3]
[387228824,1758661893668,-400.0,0.00024931,3]
[387228825,1758661893678,-533.33,0.00024931,3]
[387228826,1758661893688,-510.61,0.00024931,3]
[387228827,1758661893699,-682.64,0.00024931,3]
[387228828,1758661893708,-1408.96,0.00024931,3]
[387228829,1758661893718,-400.0,0.00024931,3]
[387228830,1758661893727,-1665.63,0.00024931,3]
[387228831,1758661893737,-400.0,0.00024931,3]
[387228832,1758661893747,-769.29,0.00024931,3]
[387228833,1758661893757,-699.16,0.00024931,3]
[387228834,1758661893768,-751.85,0.00024931,3]
[387228835,1758661893778,-400.0,0.00024931,3]
[387228836,1758661893787,-400.0,0.00024931,3]
[387228837,1758661893797,-1242.53,0.00024931,3]
[387228838,1758661893806,-400.0,0.00024931,3]
[387228839,1758661893816,-400.0,0.00024931,3]
[387228840,1758661893825,-400.0,0.00024931,3]
[387228841,1758661893835,-637.39,0.00024931,3]
[387228842,1758661893845,-579.0,0.00024931,3]
[387228843,1758661893855,-400.0,0.00024931,3]
[387228844,1758661893865,-2636.22,0.00024931,3]
[387228845,1758661893875,-409.96205944,0.00024931,3]
[387228846,1758661893884,-1525.02,0.00024931,3]
[387228847,1758661893894,-1466.31,0.00024931,3]
[387228848,1758661893905,-495.47,0.00024931,3]
[387228849,1758661893915,-400.0,0.00024931,3]
[387228850,1758661893925,-798.11,0.00024931,3]
[387228851,1758661893935,-400.0,0.00024931,3]
[387228852,1758661893945,-518.94,0.00024931,3]
[387228853,1758661893955,-400.0,0.00024931,3]
[387228854,1758661893965,-400.0,0.00024931,3]
[387228855,1758661893974,-490.63768164,0.00024931,3]
[387228856,1758661893984,-762.51,0.00024931,3]
[387228857,1758661893993,-2875.87,0.00024931,3]
[387228858,1758661894003,-1632.56,0.00024931,3]
[387228859,1758661894012,-400.0,0.00024931,3]
[387228860,1758661894022,-400.0,0.00024931,3]
[387228861,1758661894034,-400.0,0.00024931,3]
[387228862,1758661894043,-798.6,0.00024931,3]
[387228863,1758661894053,-3762.69,0.00024931,3]
[387228864,1758661894064,-400.0,0.00024931,3]
[387228865,1758661894074,-531.71,0.00024931,3]
[387228866,1758661894084,-400.0,0.00024931,3]
[387228867,1758661894094,-2553.16,0.00024931,3]
[387228868,1758661894104,-1956.85,0.00024931,3]
[387228869,1758661894113,-622.45,0.00024931,3]
[387228870,1758661894123,-1537.92,0.00024931,3]
[387228871,1758661894133,-400.0,0.00024931,3]
[387228872,1758661894142,-788.89,0.00024931,3]
[387228873,1758661894151,-1147.02,0.00024931,3]
[387228874,1758661894161,-400.0,0.00024931,3]
[387228875,1758661894171,-300.0,0.00024931,3]
[387228876,1758661894180,-951.02,0.00024931,3]
[387228877,1758661894190,-972.71,0.00024931,3]
[387228878,1758661894199,-422.03,0.00024931,3]
[387228879,1758661894208,-400.0,0.00024931,3]
[387228880,1758661894218,-400.0,0.00024931,3]
[387228881,1758661894228,-1346.56,0.00024931,3]
[387228882,1758661894237,-400.0,0.00024931,3]
[387228883,1758661894247,-400.0,0.00024931,3]
[387228884,1758661894256,-2839.02,0.00024931,3]
[387228885,1758661894266,-1549.36,0.00024931,3]
[387228886,1758661894275,-476.65,0.00024931,3]
[387228887,1758661894285,-400.0,0.00024931,3]
[387228888,1758661894294,-400.0,0.00024931,3]
[387228889,1758661894304,-400.0,0.00024931,3]
[387228890,1758661894313,-400.0,0.00024931,3]
[387228891,1758661894322,-403.21251089,0.00024931,3]
[387228892,1758661894331,-4357.73,0.00024931,3]
[387228893,1758661894341,-1634.04,0.00024931,3]
[387228894,1758661894350,-400.0,0.00024931,3]
[387228895,1758661894359,-1000.0,0.00024931,3]
[387228896,1758661894370,-500.0,0.00024931,2]
[387228897,1758661894379,-409.88,0.00024931,3]
[387228898,1758661894388,-1084.0,0.00024931,3]
[387228899,1758661894398,-400.0,0.00024931,3]
[387228900,1758661894407,-1280.34,0.00024931,3]
[387228901,1758661894417,-400.0,0.00024931,3]
[387228902,1758661894427,-805.32,0.00024931,3]
[387228903,1758661894436,-400.0,0.00024931,3]
[387228904,1758661894445,-400.0,0.00024931,3]
[387228905,1758661894455,-1119.42,0.00024931,3]
[387228906,1758661894464,-2056.73,0.00024931,3]
[387228907,1758661894482,-400.0,0.00024931,3]
[387228908,1758661894493,-1410.3,0.00024931,3]
[387228909,1758661894503,-1894.78,0.00024931,3]
[387228910,1758661894512,-403.32523682,0.00024931,3]
[387228911,1758661894522,-400.0,0.00024931,3]
[387228912,1758661894532,-400.0,0.00024931,3]
[387228913,1758661894542,-1503.29,0.00024931,3]
[387228914,1758661894552,-1845.22,0.00024931,3]
[387228915,1758661894563,-1388.78,0.00024931,3]
[387228916,1758661894572,-400.0,0.00024931,3]
[387228917,1758661894582,-1850.83,0.00024931,3]
[387228918,1758661894595,-846.03,0.00024931,3]
[387228919,1758661894608,-8091.04,0.00024931,3]
[387228920,1758661894618,-400.0,0.00024931,3]
[387228921,1758661894628,-421.68,0.00024931,3]
[387228922,1758661894639,-1679.65,0.00024931,3]
[387228923,1758661894648,-400.0,0.00024931,3]
[387228924,1758661894658,-502.01,0.00024931,3]
[387228925,1758661894668,-400.0,0.00024931,3]
[387228926,1758661894678,-400.0,0.00024931,3]
[387228927,1758661894692,-400.0,0.00024931,3]
[387228928,1758661894702,-433.62,0.00024931,3]
[387228929,1758661894712,-400.0,0.00024931,3]
[387228930,1758661894721,-4655.24,0.00024931,3]
[387228931,1758661894731,-530.54434772,0.00024931,3]
[387228932,1758661894741,-406.33983009,0.00024931,3]
[387228933,1758661894751,-400.0,0.00024931,3]
[387228934,1758661894762,-693.66,0.00024931,3]
[387228935,1758661894772,-2068.27,0.00024931,3]
[387228936,1758661894782,-400.0,0.00024931,3]
[387228937,1758661894792,-1644.34,0.00024931,3]
[387228938,1758661894802,-2413.67,0.00024931,3]
[387228939,1758661894813,-404.69839504,0.00024931,3]
[387228940,1758661894822,-1162.14,0.00024931,3]
[387228941,1758661894832,-512.27,0.00024931,3]
[387228942,1758661894842,-400.0,0.00024931,3]
[387228943,1758661894852,-400.0,0.00024931,3]
[387228944,1758661894862,-1673.44,0.00024931,3]
[387228945,1758661894872,-400.0,0.00024931,3]
[387228946,1758661894881,-206.65996309,0.00024931,3]
[387228947,1758661894891,-1429.94,0.00024931,3]
[387228948,1758661894901,-400.0,0.00024931,3]
[387228949,1758661894910,-400.0,0.00024931,3]
[387228950,1758661894920,-2806.01,0.00024931,3]
[387228951,1758661894930,-400.0,0.00024931,3]
[387228952,1758661894939,-2152.11,0.00024931,3]
[387228953,1758661894949,-400.0,0.00024931,3]
[387228954,1758661894959,-1134.97,0.00024931,3]
[387228955,1758661894969,-400.0,0.00024931,3]
[387228956,1758661894978,-1892.71,0.00024931,3]
[387228957,1758661894988,-1238.07,0.00024931,3]
[387228958,1758661894998,-549.28,0.00024931,3]
[387228959,1758661895007,-400.0,0.00024931,3]
[387228960,1758661895016,-1569.61,0.00024931,3]
[387228961,1758661895026,-900.98,0.00024931,3]
[387228962,1758661895036,-1059.44,0.00024931,3]
[387228963,1758661895045,-433.87,0.00024931,3]
[387228964,1758661895055,-1994.63,0.00024931,3]
[387228965,1758661895065,-506.04,0.00024931,3]
[387228966,1758661895074,-10030.2,0.00024931,3]
[387228967,1758661895084,-1736.4,0.00024931,3]
[387228968,1758661895094,-400.0,0.00024931,3]
[387228969,1758661895108,-1895.88,0.00024931,3]
[387228970,1758661895118,-400.0,0.00024931,3]
[387228971,1758661895127,-400.0,0.00024931,3]
[387228972,1758661895137,-4001.0,0.00024931,3]
[387228973,1758661895147,-1801.78,0.00024931,3]
[387228974,1758661895157,-400.0,0.00024931,3]
[387228975,1758661895166,-13767.91,0.00024931,3]
[387228976,1758661895176,-1474.16,0.00024931,3]
[387228977,1758661895186,-400.0,0.00024931,3]